[Event "AUT Bundesliga 2024-25"]
[Site "Austria"]
[Date "2025.04.03"]
[Round "7.30"]
[White "Gschnitzer, Adrian"]
[Black "Dotzer, Lukas"]
[Result "1/2-1/2"]
[Annotator "TA"]
[ECO "B43"]
[WhiteElo "2430"]
[BlackElo "2453"]
[PlyCount "260"]
[EventDate "2024.08.28"]
[EventType "team-tourn"]
[EventCountry "AUT"]
[SourceTitle "playchess.com"]
[Source "ChessBase"]
[SourceQuality "1"]
[TimeControl "40/5400+30:1800+30"]

{[%evp 15,260,39,44,27,23,10,6,10,13,10,27,0,0,-12,-20,-16,-15,-114,-10,-36,-31,-151,-152,-123,-150,-264,-260,-259,-257,-244,-241,-245,-140,-147,-145,-154,-159,-181,-175,-233,-230,-234,-232,-238,-212,-211,-198,-244,-233,-227,-148,-141,-137,-137,-137,-178,-137,-137,-137,-137,-137,-137,-144,-144,-144,-144,0,-144,0,-147,0,-393,-383,-466,-466,-452,-445,-445,-424,-811,-811,-811,-804,-724,-710,-375,-700,-642,-255,-255,-255,-255,-255,-255,-255,-255,-255,-255,-255,-255,-255,-255,0,0,0,0,0,0,0,0,0,0,0,0,0,0,0,0,0,0,0,0,0,0,0,0,0,0,0,0,0,0,0,0,0,0,0,0,0,0,0,0,0,0,0,0,0,0,0,0,0,0,0,0,0,0,0,0,0,0,0,0,0,0,0,0,0,0,0,0,0,0,0,0,0,0,0,0,0,0,0,0,0,0,0,0,0,0,0,0,0,0,0,0,0,0,0,0,0,0,0,0,0,0,0,0,0,0,0,0,0,0,0,0,0,0,0,0,0,0,0,0,0,0,0,0,0,0,0,0,0,0,0,0,0,0,8,8,8,0,8,8,8,8,8,8,8]} 1. e4 {[%emt 0:00:03]} c5 {[%emt 0:00:04]} 2. Nf3 {[%emt 0:00:08]} e6 {[%emt 0:00:04]} 3. d4 {[%emt 0:00:07]} cxd4 {[%emt 0:00:04]} 4. Nxd4 {[%emt 0:00:07]} a6 {[%emt 0:00:07]} 5. Nc3 {[%emt 0:00:08]} b5 {[%emt 0:00:05]} 6. Bd3 {[%emt 0:00:10]} Bb7 {[%emt 0:00:05]} 7. O-O {[%emt 0:00:16]} Nc6 {[%emt 0:00:04]} 8. Nxc6 {[%emt 0:00:28]} Bxc6 {[%emt 0:00:06]} 9. Re1 {[%emt 0:01:08] B43: Sicilian: Kan Variation: 5 Nc3.} Ne7 {[%emt 0:00:38]} 10. a4 {[%emt 0:10:30]} b4 {[%emt 0:01:17]} 11. Ne2 {[%emt 0:02:48]} Ng6 {[%emt 0:02:17]} 12. Nd4 {[%emt 0:06:11]} Bb7 {[%emt 0:01:09]} 13. Qh5 {[%emt 0:01:18]} Qc7 {[%emt 0:06:40]} 14. e5 {[%emt 0:04:07]} Bc5 {[%emt 0:11:31]} 15. Nb3 {[%emt 0:03:37]} Ba7 {[%emt 0:02:19]} 16. Be3 {[%emt 0:15:01]} (16. Qg5 $11) 16... Nxe5 $146 {[%emt 0:19:01]} (16... Bxe3 $1 $17 17. Rxe3 Bxg2) (16... Bxe3 17. Rxe3 Bxg2 18. Bxg6 fxg6 19. Qg4 Bd5 20. Qxb4 Qxc2 21. Nd4 Qc7 22. Ne2 Rb8 {0-1 Bilych,O (2342)-Subelj,J (2468) EU-ch 22nd Terme Catez 2022 (10)}) 17. Bxa6 {[%emt 0:18:23]} g6 {[%emt 0:24:08]} 18. Qg5 {[%emt 0:12:09]} (18. Qh4 $1 $15 Bxa6 19. Bxa7 (19. Qf6 Bxe3 20. Rxe3 O-O $15) 19... Rxa7 20. Qf6) 18... f6 $1 $17 {[%emt 0:01:33]} 19. Qxf6 {[%emt 0:00:25]} Rf8 {[%emt 0:00:28]} 20. Qxe5 {[%emt 0:00:46]} (20. Qg7 $17 Bxa6 21. Bxa7 (21. Qxh7 $2 Bxe3 22. Rxe3 Qxc2 $19) 21... Qxa7 22. Qxe5 (22. Rxe5 $2 Qxf2+ 23. Kh1 Qf1+ 24. Rxf1 Rxf1#) 22... Qxf2+ 23. Kh1) 20... Qxe5 $19 {[%emt 0:00:11]} 21. Bxb7 {[%emt 0:00:38]} Bxe3 $1 {[%emt 0:06:06]} 22. Rxe3 {[%emt 0:00:27]} Qf5 {[%emt 0:00:32]} (22... Qxb2 23. Bxa8 Qxc2 24. Bf3 $18) 23. Re2 {[%emt 0:08:51] [#]} Rxa4 {[%emt 0:06:40]} 24. Rxa4 $17 {[%emt 0:00:56]} Qb5 $40 {[%emt 0:00:09][%csl LRa4,LRb7,LRe2][%mdl 128] Black is out for blood.} 25. Ra8+ {[%emt 0:01:38]} Ke7 {[%emt 0:00:05]} 26. Rd2 {[%emt 0:03:16]} (26. Ba6 $2 Qd5 27. Rd2 Qxa8 $19) 26... Qxb7 {[%emt 0:00:22]} 27. Rxf8 {[%emt 0:02:56]} (27. Ra1) 27... Qe4 $19 {[%emt 0:06:13]} 28. Kf1 {[%emt 0:00:06] Wards off Qe1+} Kxf8 {[%emt 0:00:26][%mdl 4096] Endgame KQ-KRN} 29. Nc5 {[%emt 0:00:46]} Qc4+ {[%emt 0:00:21]} 30. Nd3 {[%emt 0:00:06]} e5 {[%emt 0:02:36]} 31. f3 {[%emt 0:00:56]} (31. b3 {keeps fighting.} Qc3 32. Re2) 31... Qd4 {[%emt 0:05:14]} 32. b3 {[%emt 0:01:41]} d6 {[%emt 0:02:16]} 33. Re2 {[%emt 0:00:52]} Qc3 {[%emt 0:01:15]} 34. Kf2 {[%emt 0:02:55]} Kf7 {[%emt 0:01:54]} 35. g3 {[%emt 0:01:16]} Kf6 {[%emt 0:00:52]} 36. Kg2 {[%emt 0:00:40]} h5 {[%emt 0:00:52]} 37. h4 {[%emt 0:00:50]} Kf5 {[%emt 0:00:31]} 38. Kh2 {[%emt 0:01:42]} Qa1 {[%emt 0:00:38]} 39. Re1 {[%emt 0:00:30]} Qa2 {[%emt 0:00:29]} 40. Re2 {[%emt 0:01:04]} Qa1 {[%emt 0:00:33]} 41. Re1 $1 {[%emt 0:01:04]} Qc3 {[%emt 0:17:18]} 42. Re2 {[%emt 0:00:14]} d5 {[%emt 0:01:37]} (42... Qd4 $17 43. Nf2 d5) 43. Kg2 $2 {[%emt 0:18:36][%mdl 8192]} (43. Rxe5+ $11 Kf6 44. Re2) 43... e4 {[%emt 0:01:24]} 44. fxe4+ {[%emt 0:00:25]} dxe4 {[%emt 0:00:11]} 45. Rf2+ {[%emt 0:00:47]} Ke6 {[%emt 0:00:07]} 46. Nf4+ {[%emt 0:01:14]} Kd6 {[%emt 0:06:48]} 47. Nxg6 {[%emt 0:01:38]} (47. Kh2 $142 Kd7 48. Re2) 47... e3 {[%emt 0:00:16]} 48. Re2 {[%emt 0:00:16]} Qc6+ {[%emt 0:00:17]} 49. Kh2 {[%emt 0:00:15]} Qf3 {[%emt 0:01:01]} 50. Nf4 {[%emt 0:00:10]} Ke5 $2 {[%emt 0:00:57]} (50... Kc5 51. Nd3+ Kd6) 51. Rg2 {[%emt 0:00:56]} Kf5 $2 {[%emt 0:03:23]} (51... Qd1 52. Re2 Kd4) 52. Ne2 {[%emt 0:00:30]} Kg4 {[%emt 0:00:15]} 53. Ng1 {[%emt 0:01:18]} Qe4 {[%emt 0:01:24]} 54. Re2 {[%emt 0:02:01]} Qe5 {[%emt 0:00:51]} 55. Rg2 {[%emt 0:00:09]} Qc7 {[%emt 0:00:39]} 56. Kh1 {[%emt 0:01:19]} Qf7 {[%emt 0:01:21]} 57. Kh2 {[%emt 0:00:48]} Qf5 {[%emt 0:00:30]} 58. Kh1 {[%emt 0:00:49] [#]} e2 $2 {[%emt 0:00:39]} 59. Nxe2 $11 {[%emt 0:02:54] The position is equal.} Qf1+ {[%emt 0:00:34]} (59... Qxc2 $2 {loses.} 60. Rf2 Qxb3 61. Kh2 $18) 60. Kh2 {[%emt 0:00:32]} Kf3 {[%emt 0:00:15][%csl Gf3][%cal Rf1g2]} 61. Ng1+ {[%emt 0:00:49]} Ke3 {[%emt 0:00:06]} 62. Re2+ {[%emt 0:00:57]} Kd4 {[%emt 0:00:06]} 63. Rd2+ {[%emt 0:00:15]} Kc3 {[%emt 0:00:08]} 64. Rg2 {[%emt 0:00:13]} Kb2 {[%emt 0:00:26]} 65. Nh3 {[%emt 0:00:31]} Qf3 {[%emt 0:00:58]} 66. Rf2 {[%emt 0:00:45]} Qe3 {[%emt 0:00:22]} 67. Kg2 {[%emt 0:00:15]} Qe4+ {[%emt 0:00:06]} 68. Kh2 {[%emt 0:00:03]} Qe3 {[%emt 0:00:08]} 69. Rg2 {[%emt 0:00:22]} Qf3 {[%emt 0:01:04]} 70. Nf4 {[%emt 0:00:25]} Qg4 {[%emt 0:00:56]} 71. Nd5 {[%emt 0:01:48]} Qe4 {[%emt 0:00:59]} 72. Nf4 {[%emt 0:01:30]} Qf3 {[%emt 0:00:12]} 73. Nd3+ {[%emt 0:01:21]} Kc3 {[%emt 0:00:16]} 74. Rf2 {[%emt 0:01:00]} Qe3 {[%emt 0:00:17]} 75. Kg2 {[%emt 0:00:36]} Qe4+ {[%emt 0:00:14]} 76. Kg1 {[%emt 0:00:42]} Qg4 {[%emt 0:01:46]} 77. Kh2 {[%emt 0:00:20]} Qd1 {[%emt 0:00:32]} 78. Kg2 {[%emt 0:00:27]} Qg4 {[%emt 0:00:26]} 79. Ne5 {[%emt 0:01:12]} Qe4+ {[%emt 0:00:12]} 80. Nf3 {[%emt 0:00:01]} Qd5 {[%emt 0:00:45]} 81. Rd2 {[%emt 0:00:23]} Qa8 {[%emt 0:00:35]} 82. Kf2 {[%emt 0:00:16]} Qa7+ {[%emt 0:00:24]} 83. Kg2 {[%emt 0:00:01]} Qa8 {[%emt 0:00:10]} 84. Re2 {[%emt 0:00:35]} Qb7 {[%emt 0:00:23]} 85. Kf2 {[%emt 0:00:43]} Qa7+ {[%emt 0:00:06]} 86. Kf1 {[%emt 0:00:17]} Qa1+ {[%emt 0:01:17]} 87. Ne1 {[%emt 0:00:02]} Qa8 {[%emt 0:00:40]} 88. Re3+ {[%emt 0:00:24]} Kb2 {[%emt 0:00:33]} 89. Ke2 {[%emt 0:01:06]} Kc1 {[%emt 0:00:17]} 90. Nd3+ {[%emt 0:00:52]} Kxc2 {[%emt 0:00:15]} 91. Nxb4+ {[%emt 0:00:07]} Kb2 {[%emt 0:00:17]} 92. Nd3+ {[%emt 0:00:49]} Kxb3 {[%emt 0:00:22]} 93. Ne5+ {[%emt 0:01:18]} Kc2 {[%emt 0:01:04]} 94. Nf3 {[%emt 0:00:14]} Qa6+ {[%emt 0:00:30]} 95. Kf2 {[%emt 0:00:14]} Qb6 {[%emt 0:00:25]} 96. Ne5 {[%emt 0:00:42]} Qf6+ {[%emt 0:00:31]} 97. Ke2 {[%emt 0:00:34]} Qa6+ {[%emt 0:00:28]} 98. Kf3 {[%emt 0:00:20]} Kd2 {[%emt 0:00:50]} 99. Rd3+ {[%emt 0:00:39]} Kc2 {[%emt 0:00:19]} 100. Ke4 {[%emt 0:00:39]} Qe6 {[%emt 0:00:38]} 101. Rf3 {[%emt 0:00:32]} Qg8 {[%emt 0:00:36]} 102. Kf5 {[%emt 0:00:46]} Kd2 {[%emt 0:00:17]} 103. Kf6 {[%emt 0:00:29]} Ke2 {[%emt 0:00:17]} 104. Rf5 {[%emt 0:00:22]} Qxg3 {[%emt 0:00:20]} 105. Rxh5 {[%emt 0:00:01]} Ke3 {[%emt 0:00:23]} 106. Ng6 {[%emt 0:00:48]} Qd6+ {[%emt 0:00:24]} 107. Kg7 {[%emt 0:00:17]} Qd7+ {[%emt 0:01:02]} 108. Kh6 {[%emt 0:00:12]} Qd2 {[%emt 0:00:50]} 109. Rf5 {[%emt 0:00:18]} Ke4+ {[%emt 0:00:22]} 110. Rf4+ {[%emt 0:00:20]} Kd5 {[%emt 0:00:08]} 111. Kg7 {[%emt 0:00:32]} Qc3+ {[%emt 0:00:47]} 112. Rf6 {[%emt 0:00:15]} Qc7+ {[%emt 0:00:20]} 113. Rf7 {[%emt 0:02:30]} Qc3+ {[%emt 0:00:17]} 114. Rf6 {[%emt 0:00:00]} Qc7+ {[%emt 0:00:07]} 115. Kg8 {[%emt 0:00:00]} Qc8+ {[%emt 0:01:15]} 116. Rf8 {[%emt 0:00:00]} Qg4 {[%emt 0:00:41]} 117. h5 {[%emt 0:00:26]} Ke6 {[%emt 0:00:24]} 118. Kg7 {[%emt 0:00:28]} Qd4+ {[%emt 0:00:07]} 119. Kh7 {[%emt 0:00:23]} Qd7+ {[%emt 0:00:29]} 120. Kg8 {[%emt 0:00:08] aiming for h6.} Qd2 {[%emt 0:00:22]} 121. Nf4+ {[%emt 0:01:06]} Ke7 {[%emt 0:00:09]} 122. Ng6+ {[%emt 0:00:04]} Ke6 {[%emt 0:00:06]} 123. Nf4+ {[%emt 0:00:27]} Ke7 {[%emt 0:00:16]} 124. Rf7+ {[%emt 0:00:07]} Ke8 {[%emt 0:00:12] ( -> ...Qa2)} 125. Ne6 {[%emt 0:00:52]} Qh6 {[%emt 0:01:10]} 126. Ng7+ {[%emt 0:00:18]} Kd8 {[%emt 0:00:01]} 127. Rf5 {[%emt 0:00:49]} Ke7 {[%emt 0:00:55]} 128. Re5+ {[%emt 0:00:25]} Kd7 $1 {[%emt 0:00:16]} 129. Re6 {[%emt 0:00:32]} Qxh5 {[%emt 0:00:07]} 130. Nxh5 {[%emt 0:00:15] Intending Kf7 and mate.} Kxe6 {[%emt 0:00:44] White happily takes the draw.   Weighted Error Value: White=0.32/Black=0.31  Loses game:     	White=1     	---        Missed win:     	---       	Black=1      Mistake:       	White=6     	Black=4      Inaccurate:     	White=2     	Black=1      OK:         	White=49    	Black=38     Best:        	White=7     	Black=11     Strong:       	White=1     	Black=3} 1/2-1/2

[Event "AUT Bundesliga 2024-25"]
[Site "Austria"]
[Date "2025.04.03"]
[Round "7.31"]
[White "Pechac, Jergus"]
[Black "Ragger, Markus"]
[Result "1-0"]
[Annotator "ChessBase"]
[ECO "C54"]
[WhiteElo "2600"]
[BlackElo "2585"]
[PlyCount "113"]
[EventDate "2024.08.28"]
[EventType "team-tourn"]
[EventCountry "AUT"]
[SourceTitle "playchess.com"]
[Source "ChessBase"]
[SourceQuality "1"]
[TimeControl "40/5400+30:1800+30"]

1. e4 {[%emt 0:00:04]} e5 {[%emt 0:00:02]} 2. Nf3 {[%emt 0:00:08]} Nc6 {[%emt 0:00:03]} 3. Bc4 {[%emt 0:00:09]} Bc5 {[%emt 0:00:06]} 4. O-O {[%emt 0:00:39]} Nf6 {[%emt 0:00:22]} 5. d3 {[%emt 0:00:05]} d6 {[%emt 0:00:31]} 6. c3 {[%emt 0:00:39]} a6 {[%emt 0:00:34]} 7. a4 {[%emt 0:00:07]} Ba7 {[%emt 0:00:09]} 8. Re1 {[%emt 0:00:27]} O-O {[%emt 0:00:08]} 9. h3 {[%emt 0:00:11]} h6 {[%emt 0:00:19]} 10. Nbd2 {[%emt 0:00:55]} Re8 {[%emt 0:00:04]} 11. b4 {[%emt 0:00:10]} Be6 {[%emt 0:00:05]} 12. Bxe6 {[%emt 0:00:05]} Rxe6 {[%emt 0:00:04]} 13. Qc2 {[%emt 0:00:06]} Qd7 {[%emt 0:00:07]} 14. Nb3 {[%emt 0:03:49]} Nh5 {[%emt 0:04:09]} 15. d4 {[%emt 0:09:29]} Rf6 {[%emt 0:10:22]} 16. Qd1 {[%emt 0:00:59]} Nf4 {[%emt 0:18:31]} 17. Bxf4 {[%emt 0:03:11]} Rxf4 {[%emt 0:01:55]} 18. b5 {[%emt 0:02:07]} Ne7 {[%emt 0:08:14]} 19. g3 {[%emt 0:16:45]} Rf6 {[%emt 0:02:20]} 20. dxe5 {[%emt 0:00:38]} Rg6 {[%emt 0:01:21]} 21. Kg2 {[%emt 0:01:14]} axb5 {[%emt 0:12:55]} 22. axb5 {[%emt 0:01:22]} Qxb5 {[%emt 0:00:02]} 23. Nh4 {[%emt 0:18:29]} Qb6 {[%emt 0:00:08]} 24. Nd4 {[%emt 0:04:44]} dxe5 {[%emt 0:00:54]} 25. Nxg6 {[%emt 0:04:37]} Nxg6 {[%emt 0:00:20]} 26. Qb3 {[%emt 0:01:37]} exd4 {[%emt 0:11:46]} 27. Qxb6 {[%emt 0:00:10]} cxb6 {[%emt 0:00:00]} 28. cxd4 {[%emt 0:00:13]} Ne7 {[%emt 0:00:02]} 29. d5 {[%emt 0:00:14]} Kf8 {[%emt 0:00:15]} 30. Rec1 {[%emt 0:01:54]} Rc8 {[%emt 0:00:45]} 31. d6 {[%emt 0:00:20]} Rxc1 {[%emt 0:02:05]} 32. dxe7+ {[%emt 0:00:20]} Kxe7 {[%emt 0:00:02]} 33. Rxc1 {[%emt 0:00:08]} Kd6 {[%emt 0:00:41]} 34. e5+ {[%emt 0:02:36]} Kxe5 {[%emt 0:28:09]} 35. Rc7 {[%emt 0:00:08]} b5 {[%emt 0:00:00]} 36. Rxb7 {[%emt 0:04:26]} Bd4 {[%emt 0:00:00]} 37. Rxb5+ {[%emt 0:00:54]} Kf6 {[%emt 0:00:00]} 38. f4 {[%emt 0:01:07]} g6 {[%emt 0:00:00]} 39. g4 {[%emt 0:00:39]} Kg7 {[%emt 0:00:00]} 40. Kf3 {[%emt 0:02:45]} Bc3 {[%emt 0:00:00]} 41. Ke4 {[%emt 0:30:44]} Bf6 {[%emt 0:15:32]} 42. Rc5 {[%emt 0:07:38]} Bb2 {[%emt 0:05:27]} 43. h4 {[%emt 0:02:19]} Bf6 {[%emt 0:04:55]} 44. h5 {[%emt 0:02:30]} gxh5 {[%emt 0:00:04]} 45. gxh5 {[%emt 0:02:25]} Bb2 {[%emt 0:00:19]} 46. Rc6 {[%emt 0:00:13]} Ba1 {[%emt 0:00:00]} 47. Kd5 {[%emt 0:00:00]} Bb2 {[%emt 0:00:00]} 48. f5 {[%emt 0:00:00]} Ba1 {[%emt 0:00:00]} 49. Kc5 {[%emt 0:00:00]} Bb2 {[%emt 0:00:00]} 50. Kb6 {[%emt 0:00:00]} Be5 {[%emt 0:00:00]} 51. Kb7 {[%emt 0:00:00]} Bd4 {[%emt 0:00:00]} 52. Kc7 {[%emt 0:00:00]} Be5+ {[%emt 0:00:00]} 53. Kd7 {[%emt 0:00:00]} Bf6 {[%emt 0:00:00]} 54. Ke8 {[%emt 0:00:00]} Bb2 {[%emt 0:00:00]} 55. Ke7 {[%emt 0:00:00]} Ba3+ {[%emt 0:00:00]} 56. Kd7 {[%emt 0:00:00]} Bb2 {[%emt 0:00:00]} 57. Ke8 {[%emt 0:00:00]} 1-0

[Event "AUT Bundesliga 2024-25"]
[Site "Austria"]
[Date "2025.04.03"]
[Round "7.32"]
[White "Costa, Leonardo"]
[Black "Zilka, Stepan"]
[Result "0-1"]
[Annotator "TA"]
[ECO "C54"]
[WhiteElo "2510"]
[BlackElo "2515"]
[PlyCount "74"]
[EventDate "2024.08.28"]
[EventType "team-tourn"]
[EventCountry "AUT"]
[SourceTitle "playchess.com"]
[Source "ChessBase"]
[SourceQuality "1"]
[TimeControl "40/5400+30:1800+30"]

{[%evp 11,74,27,22,22,26,25,20,15,25,12,26,20,24,27,25,14,29,17,32,29,28,25,36,2,19,-2,-4,-21,0,0,0,-17,-10,-17,-20,-17,0,0,13,10,12,-33,-20,-27,31,24,24,31,21,-21,20,-114,-108,-420,-385,-422,-419,-1095,-1073,-29995,-29996,-29996,-29997,-29998,-29999]} 1. e4 {[%emt 0:00:02]} e5 {[%emt 0:00:08]} 2. Nf3 {[%emt 0:00:04]} Nc6 {[%emt 0:00:06]} 3. Bc4 {[%emt 0:00:03]} Bc5 {[%emt 0:00:11]} 4. c3 {[%emt 0:00:04]} Nf6 {[%emt 0:00:06]} 5. d3 {[%emt 0:00:04]} a6 {[%emt 0:00:11]} 6. O-O {[%emt 0:00:05]} Ba7 {[%emt 0:00:12]} 7. Re1 {[%emt 0:00:19] 7.a4 is setting a new trend. C54: Giuoco Piano: 4 c3 Nf6, main lines with 5 d4 and 5 d3.} d6 {[%emt 0:00:14]} 8. a4 {[%emt 0:00:04]} h6 {[%emt 0:01:06]} 9. Nbd2 {[%emt 0:00:08][%cal Bb1d2,Bd2f1,Bf1g3][%mdl 32] The position is equal.} O-O {[%emt 0:00:08]} 10. h3 {[%emt 0:00:03]} Re8 {[%emt 0:01:31]} 11. b4 {[%emt 0:00:05]} Be6 {[%emt 0:00:07]} 12. Bxe6 {[%emt 0:00:04]} Rxe6 {[%emt 0:00:05]} 13. Qc2 {[%emt 0:00:05]} Ne7 {[%emt 0:04:22]} 14. Nf1 {[%emt 0:01:02]} c6 {[%emt 0:07:08]} 15. c4 {[%emt 0:10:33]} Ng6 {[%emt 0:02:05]} 16. Ng3 {[%emt 0:00:23]} d5 {[%emt 0:00:45]} 17. Bb2 {[%emt 0:22:46]} (17. Nf5 Qd7 18. Bd2 Ne7 19. Bc3) 17... d4 $146 {[%emt 0:00:38]} (17... a5 18. exd5 cxd5 19. Nxe5 Nxe5 20. Rxe5 dxc4 21. Rxe6 cxd3 22. Qb3 fxe6 23. Qxe6+ Kh8) (17... dxe4 18. dxe4 a5 19. Red1 Qc7 20. bxa5 Qxa5 21. Bc3 Qc7 22. Bb4 Bd4 23. Nxd4 exd4 24. Bc5 Rae8 25. Bxd4 Nxe4 26. Nf5 f6 27. Be3 Re5 {½-½ Saric,I (2666)-Kasimdzhanov,R (2691) Bundesliga 1617 2016 (5.3)}) 18. c5 {[%emt 0:03:16]} a5 {[%emt 0:03:34]} 19. Ba3 {[%emt 0:00:02]} axb4 {[%emt 0:00:55]} 20. Bxb4 {[%emt 0:00:03]} Nd7 {[%emt 0:01:57]} 21. Rec1 {[%emt 0:05:27]} Nf4 {[%emt 0:02:55]} 22. Ne2 {[%emt 0:00:29]} Nxe2+ {[%emt 0:04:05]} 23. Qxe2 {[%emt 0:00:03]} Qe7 {[%emt 0:01:32][%cal Ra7c5]} 24. Qc2 {[%emt 0:01:06]} Rf8 {[%emt 0:04:15]} 25. Rab1 {[%emt 0:02:29]} f5 {[%emt 0:03:04]} 26. Ba3 {[%emt 0:18:44] [#] exf5 would now be deadly.} (26. Nd2 {with more complications.} fxe4 27. Nxe4 Rg6 28. Re1) 26... fxe4 {[%emt 0:15:41]} 27. dxe4 {[%emt 0:00:03]} Rb8 {[%emt 0:02:29]} (27... Rxf3 $1 $11 28. gxf3 Qh4) 28. Rb3 {[%emt 0:03:05]} Kh7 {[%emt 0:03:16]} 29. Ne1 {[%emt 0:02:49]} Rg6 {[%emt 0:00:49]} 30. Nd3 {[%emt 0:00:50]} Qg5 {[%emt 0:07:54]} 31. g3 {[%emt 0:04:26]} (31. f3 $11) 31... Qh4 $17 {[%emt 0:04:25]} 32. Rcb1 $2 {[%emt 0:05:04][%mdl 8192] White does not recover from this.} (32. Kh2 $17 Qxe4 33. Rcb1) 32... Qxh3 $19 {[%emt 0:11:50]} 33. Qd1 {[%emt 0:20:05]} Rf8 {[%emt 0:00:23] And now ...Rg5 would win.} ({Less strong is} 33... b6 34. R1b2 $17) 34. R1b2 {[%emt 0:01:13]} (34. Nb2 $142) 34... Rg5 {[%emt 0:01:53]} 35. Rxb7 {[%emt 0:01:56] [#]} Rxf2 $1 {[%emt 0:01:55] Black mates.} 36. Kxf2 {[%emt 0:00:05]} Qxg3+ {[%emt 0:00:19]} 37. Ke2 {[%emt 0:00:14]} Qe3+ {[%emt 0:00:07] Weighted Error Value: White=0.79/Black=0.07 (flawless)   Loses game:     	White=1     	---        Mistake:       	White=2     	Black=1      Inaccurate:     	White=4     	Black=1      OK:         	White=8     	Black=7      Best:        	White=1     	Black=4} 0-1

[Event "AUT Bundesliga 2024-25"]
[Site "Austria"]
[Date "2025.04.03"]
[Round "7.33"]
[White "Hracek, Zbynek"]
[Black "Halvax, Georg"]
[Result "1-0"]
[Annotator "RC"]
[ECO "D35"]
[WhiteElo "2538"]
[BlackElo "2441"]
[PlyCount "51"]
[EventDate "2024.08.28"]
[EventType "team-tourn"]
[EventCountry "AUT"]
[SourceTitle "playchess.com"]
[Source "ChessBase"]
[SourceQuality "1"]
[TimeControl "40/5400+30:1800+30"]

1. c4 {[%emt 0:00:04]} e6 {[%emt 0:00:17]} 2. Nc3 {[%emt 0:00:15]} d5 {[%emt 0:00:26]} 3. d4 {[%emt 0:00:08]} Nf6 {[%emt 0:00:15]} 4. cxd5 {[%emt 0:00:21]} exd5 {[%emt 0:00:11]} 5. Bg5 {[%emt 0:00:07]} c6 {[%emt 0:00:38]} 6. e3 {[%emt 0:00:20]} Be7 {[%emt 0:00:09]} 7. Bd3 {[%emt 0:00:26]} Nbd7 {[%emt 0:00:18]} 8. Nf3 {[%emt 0:00:41]} Nf8 {[%emt 0:01:15]} 9. Ne5 {[%emt 0:03:37]} Ne6 {[%emt 0:01:00]} 10. f4 {[%emt 0:03:29]} O-O {[%emt 0:02:48]} 11. O-O {[%emt 0:01:42]} c5 {[%emt 0:02:09]} 12. Kh1 {[%emt 0:16:52]} h6 {[%emt 0:26:37]} 13. Bxf6 {[%emt 0:03:24]} Bxf6 {[%emt 0:01:11]} 14. Bc2 {[%emt 0:05:58]} Re8 {[%emt 0:18:17]} 15. Qh5 {[%emt 0:09:47]} Re7 {[%emt 0:16:23]} 16. Rad1 {[%emt 0:19:07]} cxd4 {[%emt 0:05:51]} 17. exd4 {[%emt 0:00:05]} Nc7 {[%emt 0:01:05]} 18. g4 {[%emt 0:05:44]} g6 {[%emt 0:05:37]} 19. Qxh6 {[%emt 0:01:02]} Bxe5 {[%emt 0:00:26]} 20. fxe5 {[%emt 0:08:45]} Bxg4 {[%emt 0:00:03]} 21. Rf4 {[%emt 0:01:14]} Bh5 {[%emt 0:04:53]} 22. Rg1 {[%emt 0:00:30]} Ne6 {[%emt 0:00:43]} 23. Rh4 {[%emt 0:00:28]} Bf3+ {[%emt 0:01:03]} 24. Rg2 {[%emt 0:00:07]} Bxg2+ {[%emt 0:01:36]} 25. Kxg2 {[%emt 0:00:02]} Nf4+ {[%emt 0:00:08]} 26. Kf3 {[%emt 0:00:40]} 1-0

[Event "AUT Bundesliga 2024-25"]
[Site "Austria"]
[Date "2025.04.03"]
[Round "7.34"]
[White "Genser, Harald"]
[Black "Stalmach, Richard"]
[Result "0-1"]
[Annotator "RC"]
[ECO "D02"]
[WhiteElo "2271"]
[BlackElo "2427"]
[PlyCount "54"]
[EventDate "2024.08.28"]
[EventType "team-tourn"]
[EventCountry "AUT"]
[SourceTitle "playchess.com"]
[Source "ChessBase"]
[SourceQuality "1"]
[TimeControl "40/5400+30:1800+30"]

1. d4 {[%emt 0:00:05]} Nf6 {[%emt 0:00:06]} 2. Nf3 {[%emt 0:00:42]} e6 {[%emt 0:00:15]} 3. Bf4 {[%emt 0:01:07]} c5 {[%emt 0:00:16]} 4. e3 {[%emt 0:01:34]} Nc6 {[%emt 0:00:23]} 5. c3 {[%emt 0:01:37]} d5 {[%emt 0:01:30]} 6. Nbd2 {[%emt 0:02:06]} cxd4 {[%emt 0:00:16]} 7. exd4 {[%emt 0:02:15]} Nh5 {[%emt 0:01:10]} 8. Be3 {[%emt 0:02:42]} Bd6 {[%emt 0:00:28]} 9. Ne5 {[%emt 0:01:53]} Nf6 {[%emt 0:00:36]} 10. Bb5 {[%emt 0:10:58]} O-O {[%emt 0:05:35]} 11. Nxc6 {[%emt 0:11:59]} bxc6 {[%emt 0:00:09]} 12. Bd3 {[%emt 0:00:36]} Qc7 {[%emt 0:03:28]} 13. h3 {[%emt 0:01:27]} c5 {[%emt 0:00:57]} 14. dxc5 {[%emt 0:06:55]} Bxc5 {[%emt 0:00:15]} 15. Bxc5 {[%emt 0:00:43]} Qxc5 {[%emt 0:00:07]} 16. O-O {[%emt 0:00:21]} e5 {[%emt 0:01:48]} 17. c4 {[%emt 0:07:27]} e4 {[%emt 0:04:47]} 18. Be2 {[%emt 0:05:11]} d4 {[%emt 0:01:13]} 19. Nb3 {[%emt 0:03:17]} Qg5 {[%emt 0:01:13]} 20. f4 {[%emt 0:03:44]} Qg6 {[%emt 0:02:38]} 21. Qxd4 {[%emt 0:02:22]} Bxh3 {[%emt 0:00:09]} 22. Rf2 {[%emt 0:04:43]} Qg3 {[%emt 0:00:37]} 23. Bd1 {[%emt 0:14:16]} e3 {[%emt 0:02:03]} 24. Rc2 {[%emt 0:01:31]} Rad8 {[%emt 0:00:09]} 25. Qxa7 {[%emt 0:04:19]} e2 {[%emt 0:02:35]} 26. Rxe2 {[%emt 0:00:38]} Ng4 {[%emt 0:00:08]} 27. Nd2 {[%emt 0:03:41]} Rxd2 {[%emt 0:00:26]} 0-1